bitfinex-derivatives/quotes_ETHF0:USTF0_20250214
["timestamp","ask_amount","ask_price","bid_price","bid_amount"]
[1739531553468,40.8,2703.7,2703.6,8.37910454]
[1739531553673,40.8,2703.7,2703.6,8.94563031]
[1739531555481,40.8,2703.7,2703.6,8.94564277]
[1739531557479,40.8,2703.7,2703.6,8.94565118]
[1739531559581,40.8,2703.7,2703.6,8.9457521]
[1739531561984,40.8,2703.7,2703.6,8.94592069]
[1739531563482,40.8,2703.7,2703.6,8.37910454]
[1739531563781,40.8,2703.7,2703.6,8.94606493]
[1739531565580,40.8,2703.7,2703.6,7.73872169]
[1739531569392,40.8,2703.7,2703.6,7.7388249]
[1739531570189,40.8,2703.7,2703.6,8.7730334]
[1739531570690,40.8,2703.7,2703.6,7.7388249]
[1739531571481,40.8,2703.7,2703.6,7.73889204]
[1739531573487,40.8,2703.7,2703.6,7.73903823]
[1739531576088,40.8,2703.7,2703.6,7.1717485]
[1739531576293,40.8,2703.7,2703.6,7.73915533]
[1739531577391,40.8,2703.7,2703.6,7.73918458]
[1739531577993,40.8,2703.7,2703.6,7.73918455]
[1739531579388,40.8,2703.7,2703.6,7.73920614]
[1739531580897,40.8,2703.7,2703.6,8.77341464]
[1739531581088,40.8,2703.7,2703.6,8.77341801]
[1739531582799,40.8,2703.7,2703.6,8.77340404]
[1739531584196,40.8,2703.7,2703.6,7.73919554]
[1739531584799,40.8,2703.7,2703.6,7.73917944]
[1739531585392,40.8,2703.7,2703.6,7.73917226]
[1739531586299,40.8,2703.7,2703.6,8.77338076]
[1739531586699,40.8,2703.7,2703.6,8.77337625]
[1739531588697,40.8,2703.7,2703.6,8.77337311]
[1739531589702,40.8,2703.7,2703.6,7.73916461]
[1739531590501,40.8,2703.7,2703.6,7.73916458]
[1739531592304,40.8,2703.7,2703.6,6.99952458]
[1739531592500,40.8,2703.7,2703.6,7.73916458]
[1739531593098,40.8,2703.7,2703.6,7.73916799]
[1739531593701,40.8,2703.7,2703.6,8.77337649]
[1739531598516,40.8,2703.7,2703.6,8.77337276]
[1739531602409,40.8,2703.7,2703.6,8.77338731]
[1739531603110,40.8,2703.7,2703.6,6.40743881]
[1739531603511,40.8,2703.7,2703.6,7.14707881]
[1739531604307,40.8,2703.7,2703.6,7.147109]
[1739531604709,40.8,2703.7,2703.6,8.1813175]
[1739531608319,40.8,2703.7,2703.6,8.18128729]
[1739531608520,40.8,2703.7,2703.6,4.97348729]
[1739531608917,40.8,2703.7,2703.6,8.18128729]
[1739531610218,40.8,2703.7,2703.6,8.18127771]
[1739531610821,40.8,2703.7,2703.6,8.18127395]
[1739531612225,40.8,2703.7,2703.6,8.18128258]
[1739531616132,40.8,2703.7,2703.6,8.18128927]
[1739531619237,40.8,2703.7,2703.6,7.14708077]
[1739531619638,40.8,2703.7,2703.6,8.18128927]
[1739531620236,40.8,2703.7,2703.6,8.18126617]
[1739531622247,40.8,2703.7,2703.6,5.54905767]
[1739531622449,40.8,2703.7,2703.6,7.13705767]
[1739531624040,40.8,2703.7,2703.6,7.13691803]
[1739531625741,40.8,2703.7,2703.6,8.17112653]
[1739531625944,40.8,2703.7,2703.6,8.17110813]
[1739531626540,40.8,2703.7,2703.6,7.13689963]
[1739531627851,40.8,2703.7,2703.6,7.13688984]
[1739531628438,40.8,2703.7,2703.6,7.13688319]
[1739531629944,40.8,2703.7,2703.6,7.13687804]
[1739531631948,40.8,2703.7,2703.6,7.13687028]
[1739531634352,40.8,2703.7,2703.6,3.92907028]
[1739531634752,40.8,2703.7,2703.6,7.13687028]
[1739531636450,40.8,2703.7,2703.6,7.13688741]
[1739531637854,40.8,2703.7,2703.6,7.13690743]
[1739531639746,40.8,2703.7,2703.6,6.5696485]
[1739531640044,40.8,2703.7,2703.6,7.13694611]
[1739531641248,40.8,2703.7,2703.6,7.1369809]
[1739531643355,40.8,2703.7,2703.6,7.13699627]
[1739531645544,40.8,2703.7,2703.6,6.5696485]
[1739531645750,40.8,2703.7,2703.6,7.13703313]
[1739531652248,40.8,2703.7,2703.6,4.80939313]
[1739531652456,40.8,2703.7,2703.6,5.36318463]
[1739531652951,40.8,2703.7,2703.6,5.36336616]
[1739531653147,40.8,2703.7,2703.6,6.39757466]
[1739531654861,40.8,2703.7,2703.6,6.39717513]
[1739531656657,41.53961,2703.7,2703.6,0.56716663]
[1739531656858,41.53961,2703.7,2703.6,0.56704264]
[1739531657053,42.67301,2703.7,2703.4,1.0342085]
[1739531657257,0.5935,2703.6,2703.5,0.56704104]
[1739531657961,41.3935,2703.6,2703.5,0.56704104]
[1739531659159,41.3935,2703.6,2703.5,1.30671104]
[1739531660364,41.3935,2703.6,2703.5,0.56704104]
[1739531660666,41.3935,2703.6,2703.5,1.30671104]
[1739531661167,41.3935,2703.6,2703.5,1.30585784]
[1739531661757,41.3935,2703.6,2703.5,0.56618784]
[1739531663667,41.3935,2703.6,2703.5,1.30585784]
[1739531663966,41.3935,2703.6,2703.5,0.56618784]
[1739531665656,41.3935,2703.6,2703.5,1.30585784]
[1739531665962,40.8,2703.6,2703.5,1.30585784]
[1739531666155,40.8,2703.6,2703.5,1.90355784]
[1739531667160,40.8,2703.6,2703.5,1.90331344]
[1739531668167,40.8,2703.6,2703.5,2.93752194]
[1739531668564,40.8,2703.6,2703.5,2.93755376]
[1739531670462,40.8,2703.6,2703.5,2.3715785]
[1739531670766,40.8,2703.6,2703.5,2.93751884]
[1739531672458,40.8,2703.6,2703.5,2.93751112]
[1739531673169,40.8,2703.6,2703.5,3.49130262]
[1739531674164,40.8,2703.6,2703.5,3.49133277]
[1739531675563,40.8,2703.6,2703.5,4.52554127]
[1739531675963,40.8,2703.6,2703.5,3.49133277]
[1739531676365,40.8,2703.6,2703.5,3.49140555]
[1739531679176,40.8,2703.6,2703.5,4.52561405]
[1739531680281,40.8,2703.6,2703.5,4.52567922]
[1739531680776,40.8,2703.6,2703.5,4.52568208]
[1739531681974,40.8,2703.6,2703.5,3.49147358]
[1739531682366,40.8,2703.6,2703.5,3.49149399]
[1739531685980,40.8,2703.6,2703.5,2.75182399]
[1739531686181,40.8,2703.6,2703.5,2.7518294]
[1739531686581,40.8,2703.6,2703.5,0.5661294]
[1739531686783,40.8,2703.6,2703.5,2.1541294]
[1739531687375,40.8,2703.6,2703.5,2.8937994]
[1739531687782,40.8,2703.6,2703.5,2.1541294]
[1739531688483,40.8,2703.6,2703.5,0.5661294]
[1739531688677,40.8,2703.6,2703.5,2.1541294]
[1739531690284,40.8,2703.6,2703.5,2.89405107]
[1739531690888,40.8,2703.6,2703.5,1.30605107]
[1739531691183,40.8,2703.6,2703.5,2.89405107]
[1739531692186,40.8,2703.6,2703.5,2.15438107]
[1739531693280,40.8,2703.6,2703.5,2.89405107]
[1739531694087,40.8,2703.6,2703.5,2.89424112]
[1739531695987,40.8,2703.6,2703.5,2.89439532]
[1739531696582,40.8,2703.6,2703.5,2.8944135]
[1739531697985,40.8,2703.6,2703.5,2.32767]
[1739531698181,40.8,2703.6,2703.5,2.89442913]
[1739531700685,40.8,2703.6,2703.5,2.15475913]
[1739531701087,40.8,2703.6,2703.5,0.56675913]
[1739531701893,40.8,2703.6,2703.5,0.56680154]
[1739531702988,40.8,2703.6,2703.5,1.30647154]
[1739531704892,40.8,2703.6,2703.5,2.34068004]
[1739531705292,0.00555741,2704.1,2704.0,0.73953]
[1739531705497,0.00555741,2704.1,2704.0,6.39662542]
[1739531706388,40.80555741,2704.1,2704.0,6.93992542]
[1739531706590,40.80555741,2704.1,2704.0,7.67945542]
[1739531707295,40.80555741,2704.1,2704.0,6.93983842]
[1739531707800,40.80555741,2704.1,2704.0,7.67936842]
[1739531709191,40.80555741,2704.1,2704.0,7.67922655]
[1739531709399,40.80555741,2704.1,2704.0,6.39639655]
[1739531709605,40.80555741,2704.1,2704.0,6.39539655]
[1739531711198,40.80555741,2704.1,2704.0,7.13487857]
[1739531714499,40.80555741,2704.1,2704.0,6.39534857]
[1739531714810,40.80555741,2704.1,2704.0,7.13487857]
[1739531715506,40.80555741,2704.1,2704.0,7.13454978]
[1739531717007,40.80555741,2704.1,2704.0,7.13448552]
[1739531717406,40.80555741,2704.1,2704.0,6.5685385]
[1739531717607,40.80555741,2704.1,2704.0,7.13442614]
[1739531726707,40.80555741,2704.1,2704.0,7.13443512]
[1739531730615,40.80555741,2704.1,2704.0,7.13451587]
[1739531732620,40.80555741,2704.1,2704.0,7.13505539]
[1739531733117,40.80555741,2704.1,2704.0,7.13505264]
[1739531734719,40.80555741,2704.1,2704.0,7.13553317]
[1739531736719,40.80555741,2704.1,2704.0,7.13565548]
[1739531737113,40.80555741,2704.1,2704.0,6.39612548]
[1739531737515,40.80555741,2704.1,2704.0,7.13565548]
[1739531737714,40.80555741,2704.1,2704.0,6.5685385]
[1739531737920,40.80555741,2704.1,2704.0,6.39614766]
[1739531738114,40.80555741,2704.1,2704.0,7.13567766]
[1739531738511,40.80555741,2704.1,2704.0,7.13570111]
[1739531739126,40.80555741,2704.1,2704.0,7.13570133]
[1739531740317,40.80555741,2704.1,2704.0,6.39617133]
[1739531740520,40.80555741,2704.1,2704.0,7.13582957]
[1739531742133,40.80555741,2704.1,2704.0,3.77509107]
[1739531742626,40.80555741,2704.1,2704.0,3.77499362]
[1739531744528,40.80555741,2704.1,2704.0,3.77468632]
[1739531745122,40.80555741,2704.1,2704.0,3.2078]
[1739531745731,40.80555741,2704.1,2704.0,4.9815385]
[1739531748123,40.80555741,2704.1,2704.0,4.2420085]
[1739531748432,40.80555741,2704.1,2704.0,4.9815385]
[1739531748625,40.80555741,2704.1,2704.0,4.2420085]
[1739531748931,40.80555741,2704.1,2704.0,4.9815385]
[1739531749134,40.80555741,2704.1,2704.0,4.2420085]
[1739531749432,40.80555741,2704.1,2704.0,4.9815385]
[1739531750032,40.80555741,2704.1,2704.0,4.2420085]
[1739531751428,40.80555741,2704.1,2704.0,4.9815385]
[1739531751735,40.80555741,2704.1,2704.0,4.2420085]
[1739531755138,40.80555741,2704.1,2704.0,4.9815385]
[1739531755638,40.80555741,2704.1,2704.0,4.2420085]
[1739531755834,40.80555741,2704.1,2704.0,4.9815385]
[1739531756138,40.80555741,2704.1,2704.0,5.54784352]
[1739531756631,40.80555741,2704.1,2704.0,4.9815385]
[1739531756838,40.80555741,2704.1,2704.0,5.54785741]
[1739531758237,40.80555741,2704.1,2704.0,5.54788911]
[1739531758439,40.80555741,2704.1,2704.0,4.80835911]
[1739531758640,40.80555741,2704.1,2704.0,5.54788911]
[1739531761538,40.80555741,2704.1,2704.0,5.54794968]
[1739531762238,40.80555741,2704.1,2704.0,5.54797647]
[1739531767544,40.80555741,2704.1,2704.0,5.54819182]
[1739531768351,40.80555741,2704.1,2704.0,6.39566182]
[1739531770650,40.80555741,2704.1,2704.0,4.80866182]
[1739531770851,40.80555741,2704.1,2703.8,0.5887]
[1739531771147,1.5751085,2704.0,2703.7,3.758]
[1739531771346,0.5425,2703.9,2703.8,0.56686006]
[1739531771553,41.3425,2703.9,2703.8,1.30644006]
[1739531771755,41.3425,2703.9,2703.8,1.60106856]
[1739531772056,40.8,2703.9,2703.8,2.34064856]
[1739531773252,40.8,2703.9,2703.8,2.3405438]
[1739531774551,40.8,2703.9,2703.8,1.6009638]
[1739531775059,40.8,2703.9,2703.8,2.3405438]
[1739531775253,40.8,2703.9,2703.8,2.34056006]
[1739531775553,40.8,2703.9,2703.8,1.60098006]
[1739531775753,40.8,2703.9,2703.8,2.8073993]
[1739531776056,40.8,2703.9,2703.8,3.5469793]
[1739531776251,40.8,2703.9,2703.8,2.8073993]
[1739531776559,40.8,2703.9,2703.8,2.15377156]
[1739531776759,40.8,2703.9,2703.8,0.56677156]
[1739531777155,40.8,2703.9,2703.8,0.56682986]
[1739531779053,40.8,2703.9,2703.8,0.73958]
[1739531779253,40.8,2703.9,2703.8,1.30638018]
[1739531779454,40.8,2703.9,2703.8,1.30635299]
[1739531779651,40.8,2703.9,2703.8,3.54699315]
[1739531781047,40.8,2703.9,2703.8,2.98020774]
[1739531781252,40.8,2703.9,2703.8,3.54695885]
[1739531783861,40.8,2703.9,2703.8,2.80737885]
[1739531784261,40.8,2703.9,2703.8,0.56675111]
[1739531784560,41.9386,2703.9,2703.8,0.56675111]
[1739531785959,42.67816,2703.9,2703.8,0.56675111]
[1739531786355,42.67816,2703.9,2703.6,4.7938]
[1739531786654,0.73958,2703.8,2703.7,0.56668522]
[1739531786859,1.87818,2703.9,2703.7,0.5666848]
[1739531787061,40.8,2703.8,2703.6,4.7938]
[1739531787262,40.8,2703.8,2703.7,0.56668422]
[1739531787462,41.53958,2703.8,2703.7,0.56668422]
[1739531787759,41.53958,2703.8,2703.4,19.369]
[1739531787962,41.5396,2703.8,2703.5,1.3062534]
[1739531788167,40.8,2703.8,2703.6,0.73964]
[1739531789261,40.8,2703.8,2703.4,20.955]
[1739531789467,41.53961,2703.8,2703.5,1.30591916]
[1739531789766,41.53961,2703.8,2703.5,0.73965]
[1739531790064,0.73962,2703.7,2703.5,0.73966]
[1739531790256,41.5396,2703.8,2703.5,0.73966]
[1739531790457,40.8,2703.8,2703.5,0.73966]
[1739531790658,0.73961,2703.7,2703.5,0.73966]
[1739531790967,40.8,2703.8,2703.4,20.955]
[1739531791266,0.5409,2703.6,2703.4,19.369]
[1739531791461,0.5409,2703.6,2703.4,20.10867]
[1739531791462,1.165,2703.5,2703.4,20.10867]
[1739531792158,41.965,2703.5,2703.4,20.10867]
[1739531793062,41.965,2703.5,2703.4,20.67456093]
[1739531794664,41.965,2703.5,2703.4,20.6744668]
[1739531794972,41.3948,2703.5,2703.4,19.93479384]
[1739531795172,41.3948,2703.5,2703.3,3.2078]
[1739531795464,41.9348,2703.5,2703.3,3.2078]
[1739531795773,0.7398,2703.0,2702.9,5.44842774]
[1739531795968,0.7398,2703.0,2702.9,6.01422413]
[1739531796175,0.7398,2703.0,2702.9,5.44842774]
[1739531796469,0.73991,2702.6,2702.5,3.21335741]
[1739531796672,0.73991,2702.6,2702.5,0.00555741]
[1739531797266,41.53991,2702.6,2702.5,0.00555741]
[1739531798171,41.53991,2702.6,2702.0,1.587]
[1739531798172,0.74005,2702.1,2702.0,1.587]
[1739531798377,0.7401,2701.9,2701.8,2.135]
[1739531799068,41.5401,2701.9,2701.8,1.587]
[1739531799279,0.74013,2701.8,2701.7,2.82242774]
[1739531799568,0.74013,2701.8,2701.7,0.5818]
[1739531799974,0.74012,2701.9,2701.7,0.5818]
[1739531800273,0.74008,2702.0,2701.7,2.82242774]
[1739531800670,40.8,2701.8,2701.7,2.82242774]
[1739531802073,40.8,2701.8,2701.7,3.56258774]
[1739531802373,1.1225,2703.2,2701.7,3.38518438]
[1739531802575,1.1225,2703.2,2702.7,2.24062774]
[1739531802771,1.1225,2703.2,2702.4,2.24062774]
[1739531802772,0.73994,2702.5,2702.4,2.24062774]
[1739531802969,0.73999,2702.3,2702.2,3.2078]
[1739531803171,0.74002,2702.2,2702.1,2.24062774]
[1739531804376,41.54002,2702.2,2702.1,2.24062774]
[1739531805871,40.8,2702.2,2701.8,7.03542774]
[1739531806078,0.7401,2701.9,2701.8,7.03542774]
[1739531806672,0.7401,2701.9,2701.8,4.7948]
[1739531806974,0.74013,2701.8,2701.7,0.5818]
[1739531807563,41.54013,2701.8,2701.7,0.5818]
[1739531807775,40.8,2701.8,2701.6,0.00555741]
[1739531808270,40.8,2701.8,2701.6,0.74572741]
[1739531808676,41.54014,2701.8,2701.6,0.00555741]
[1739531809066,40.8,2701.8,2701.6,0.00555741]
[1739531809269,0.74016,2701.7,2701.6,0.00555741]
[1739531810779,41.54016,2701.7,2701.6,0.00555741]
[1739531815480,40.8,2701.7,2701.6,0.00555741]
[1739531816085,40.8,2701.7,2701.6,0.74574741]
[1739531817885,40.8,2701.7,2701.6,0.00555741]
[1739531818582,40.8,2701.7,2701.6,0.74574741]
[1739531818775,40.8,2701.7,2701.6,1.30892096]
[1739531819177,40.8,2701.7,2701.6,7.30892096]
[1739531819385,0.00555741,2702.4,2702.1,0.74004]
[1739531819586,0.00555741,2702.4,2702.3,2.24062774]
[1739531820089,3.7498,2703.5,2702.6,0.73989]
[1739531820381,0.73981,2703.0,2702.7,3.82762774]
[1739531820582,0.7398,2703.1,2702.7,3.82762774]
[1739531820788,40.8,2702.8,2702.7,3.82762774]
[1739531823183,0.73993,2702.6,2702.4,2.24062774]
[1739531823385,0.73994,2702.5,2702.3,4.7948]
[1739531823786,0.73997,2702.4,2702.3,4.7948]
[1739531823981,0.73997,2702.4,2701.2,5.19822948]
[1739531823982,0.74006,2702.1,2701.9,3.2078]
[1739531824185,0.543,2702.3,2701.9,3.2078]
[1739531824585,0.74008,2702.0,2701.9,3.2078]
[1739531824785,0.543,2702.3,2701.9,3.2078]
[1739531824978,0.7401,2702.0,2701.8,2.83492774]
[1739531825177,40.8,2701.9,2701.7,1.588]
[1739531825584,41.54012,2701.9,2701.7,1.588]
[1739531825786,40.8,2701.9,2701.7,1.588]
[1739531825990,41.54011,2701.9,2701.7,1.588]
[1739531826180,0.74013,2701.8,2701.7,1.588]
[1739531826583,3.2078,2702.0,2701.6,0.00555741]
[1739531826793,41.54016,2701.7,2701.6,0.00555741]
[1739531826985,40.8,2701.7,2701.6,0.00555741]
[1739531828792,41.54016,2701.7,2701.6,0.00555741]
[1739531829300,40.8,2701.7,2701.6,0.00555741]
[1739531829491,41.54016,2701.7,2701.6,0.00555741]
[1739531830191,40.8,2701.7,2701.6,0.00555741]
[1739531830391,41.54016,2701.7,2701.6,0.00555741]
[1739531831197,40.8,2701.7,2701.6,0.00555741]
[1739531831402,41.54016,2701.7,2701.6,0.00555741]
[1739531836998,0.7403,2701.2,2701.1,19.381]
[1739531837300,0.74035,2701.0,2700.9,2.1734]
[1739531837500,0.74041,2700.8,2700.7,3.2078]
[1739531837700,40.8,2700.8,2700.7,3.2078]
[1739531837900,41.54041,2700.8,2700.6,2.1749]
[1739531838100,40.8,2700.8,2700.6,2.91535]
[1739531838308,40.8,2700.8,2700.7,3.2078]
[1739531838506,41.54041,2700.8,2700.7,3.2078]
[1739531839206,40.8,2700.8,2700.6,2.1749]
[1739531839407,0.74043,2700.7,2700.6,2.1749]
[1739531839607,0.74043,2700.8,2700.6,2.1749]
[1739531840002,40.8,2700.7,2700.6,2.1749]
[1739531841807,40.8,2700.7,2700.5,0.00555741]
[1739531841808,0.74046,2700.6,2700.5,0.00555741]
[1739531842003,1.28876,2700.6,2700.5,0.00555741]
[1739531842208,4.11748774,2700.6,2700.5,0.00555741]
[1739531842401,42.67686,2700.6,2700.5,0.00555741]
[1739531846410,44.91748774,2700.6,2700.5,0.00555741]
[1739531848017,42.67686,2700.6,2700.5,0.00555741]
[1739531853218,42.67686,2700.6,2700.5,0.74604741]
[1739531853219,40.8,2700.6,2700.5,0.74604741]
[1739531853409,40.8,2700.6,2700.5,2.98667515]
[1739531853816,0.00555741,2701.0,2700.5,9.40248515]
[1739531854014,0.00555741,2701.0,2700.9,2.98100774]
[1739531854214,3.948,2701.6,2701.3,0.74026]
[1739531854419,0.74021,2701.6,2701.4,0.5596]
[1739531854925,40.8,2701.5,2701.4,0.5596]
[1739531855314,40.8,2701.5,2701.4,1.29984]
[1739531855819,40.8,2701.5,2701.4,0.5596]
[1739531856415,40.8,2701.5,2701.4,1.29984]
[1739531856915,40.8,2701.5,2701.4,0.5596]
[1739531857315,40.8,2701.5,2701.4,1.1354]
[1739531857721,40.8,2701.5,2701.4,2.7294]
[1739531863614,40.8,2701.5,2701.4,3.46964]
[1739531864316,40.8,2701.5,2701.4,2.7294]
[1739531864925,40.8,2701.5,2701.4,3.46964]
[1739531868126,40.8,2701.5,2701.4,1.1354]
[1739531868424,41.54021,2701.5,2701.4,1.1354]
[1739531868624,0.74024,2701.4,2701.3,3.2078]
[1739531868927,0.74023,2701.5,2701.3,3.2078]
[1739531869429,40.8,2701.4,2701.3,3.19253246]
[1739531869724,40.8,2701.4,2701.3,3.93280246]
[1739531872025,40.8,2701.4,2701.3,5.52680246]
[1739531875024,40.8,2701.4,2701.3,4.78653246]
[1739531875318,40.8,2701.4,2701.3,3.19253246]
[1739531875524,41.54024,2701.4,2701.3,3.19253246]
[1739531875729,40.8,2701.4,2701.3,3.19253246]
[1739531875930,40.8,2701.4,2701.1,1.1584]
[1739531876127,4.3139,2701.6,2701.1,2.7514]
[1739531876333,0.74028,2701.3,2701.1,2.7514]
[1739531876632,40.8,2701.2,2701.1,3.49172]
[1739531878133,41.5403,2701.2,2701.1,1.593]
[1739531878431,0.74032,2701.1,2700.8,1.8679]
[1739531878623,0.74032,2701.1,2700.8,3.4609]
[1739531879024,40.8,2701.2,2700.8,1.1275]
[1739531879324,1.28833,2701.1,2700.8,1.86789]
[1739531879924,0.548,2701.1,2700.8,1.1275]
[1739531880133,1.28834,2701.1,2700.8,1.86789]
[1739531880633,0.548,2701.1,2700.5,0.00555741]
[1739531880835,0.74046,2700.6,2700.5,0.00555741]
[1739531881037,0.74045,2700.7,2700.5,0.00555741]
[1739531881228,3.7926,2701.0,2700.5,0.00555741]
[1739531881528,4.61937055,2715.4,2700.5,0.00555741]
[1739531881529,3.2078,2701.3,2700.6,2.24062774]
[1739531881725,3.2078,2701.3,2701.0,0.74035]
[1739531881926,0.74033,2701.1,2700.8,0.74039]
[1739531882124,3.2078,2701.3,2700.6,5.44842774]
[1739531882125,40.8,2700.9,2700.6,3.2078]
[1739531882330,41.54039,2700.9,2700.6,3.94824]
[1739531882727,40.8,2700.9,2700.5,0.74603741]
[1739531882932,40.8,2700.9,2700.5,0.00555741]
[1739531883237,1.0882,2700.8,2700.5,0.00555741]
[1739531883434,1.82862,2700.8,2700.5,0.74602741]
[1739531883632,0.74044,2700.7,2700.5,0.00555741]
[1739531883828,1.0882,2700.8,2700.5,0.00555741]
[1739531884030,1.82863,2700.8,2700.5,0.74603741]
[1739531884231,1.0882,2700.8,2700.5,0.00555741]
[1739531884834,0.74044,2700.7,2700.5,0.00555741]
[1739531885237,0.74046,2700.6,2700.5,0.00555741]
[1739531885841,41.54046,2700.6,2700.5,0.00555741]
[1739531889336,43.78108774,2700.6,2700.5,0.00555741]
[1739531896855,41.54046,2700.6,2700.5,0.00555741]
[1739531897152,41.54046,2700.6,2700.5,0.74604741]
[1739531898151,40.8,2700.6,2700.5,0.74604741]
[1739531898859,40.8,2700.6,2700.5,5.54984741]
[1739531899457,40.8,2700.6,2700.5,4.80935741]
[1739531900460,40.8,2700.6,2700.5,5.54984741]
[1739531902260,40.8,2700.6,2700.5,12.11469411]
[1739531902656,0.74019,2701.6,2700.5,11.37420411]
[1739531902857,0.74019,2701.6,2701.1,6.18873774]
[1739531903059,0.00555741,2701.7,2701.1,6.18873774]
[1739531903060,0.00555741,2701.7,2701.2,1.729]
[1739531903263,0.74021,2701.6,2701.2,2.46929]
[1739531903455,0.74571741,2701.7,2701.3,0.74026]
[1739531903761,40.8,2701.4,2701.2,2.46928]
[1739531905356,40.8,2701.4,2701.3,0.74027]
[1739531906057,40.8,2701.4,2701.3,1.30529396]
[1739531906254,40.8,2701.4,2701.3,1.30509718]
[1739531907457,40.8,2701.4,2701.3,0.74027]
[1739531909262,40.8,2701.4,2701.3,2.33527]
[1739531917079,0.00555741,2701.7,2701.6,0.74019]
[1739531917263,0.73993,2702.6,2702.2,0.74001]
[1739531917569,3.2078,2702.7,2702.3,0.5962]
[1739531917867,3.94769,2702.7,2702.3,1.33618]
[1739531918059,40.8,2702.4,2702.3,1.33618]
[1739531918262,40.8,2702.4,2702.3,0.5962]
[1739531918463,41.53997,2702.4,2702.1,1.60255741]
[1739531919066,40.8,2702.4,2702.1,1.60255741]
[1739531920360,0.74002,2702.3,2702.1,1.60255741]
[1739531920569,0.74002,2702.2,2702.1,0.00555741]
[1739531921170,41.54002,2702.2,2702.1,0.00555741]
[1739531921468,42.09302,2702.2,2702.1,0.00555741]
[1739531923574,41.54002,2702.2,2702.1,0.00555741]
[1739531925181,0.74024,2701.4,2701.3,3.2078]
[1739531925472,0.7403,2701.2,2701.1,1.1658]
[1739531925668,0.7403,2701.2,2701.1,0.5676]
[1739531925875,0.74032,2701.1,2701.0,22.5948]
[1739531926173,2.39494,2701.5,2701.0,19.387]
[1739531926366,0.5444,2701.5,2701.0,19.387]
[1739531926562,41.54032,2701.1,2701.0,19.387]
[1739531927161,40.8,2701.1,2701.0,20.12735]
[1739531927374,40.8,2701.1,2701.0,19.387]
[1739531927573,41.54032,2701.1,2701.0,19.387]
[1739531927973,40.8,2701.1,2701.0,19.387]
[1739531928570,41.54032,2701.1,2701.0,19.387]
[1739531929069,41.54032,2701.1,2700.8,0.00555741]
[1739531929272,0.74038,2700.9,2700.8,0.00555741]
[1739531929871,40.8,2700.9,2700.8,0.00555741]
[1739531930277,40.8,2700.9,2700.8,1.88512364]
[1739531930578,40.8,2700.9,2700.8,7.88512364]
[1739531930778,40.8,2700.9,2700.8,1.88512364]
[1739531930975,40.8,2700.9,2700.8,7.88512364]
[1739531931180,0.00555741,2701.2,2701.1,0.74032]
[1739531931370,0.00555741,2701.2,2701.1,8.36220397]
[1739531931572,1.113,2702.2,2701.1,14.36220397]
[1739531931879,1.113,2702.2,2701.7,5.44842774]
[1739531932074,1.113,2702.2,2701.7,3.84962774]
[1739531932075,0.74013,2701.8,2701.7,3.84962774]
[1739531932272,1.113,2702.2,2701.7,3.84962774]
[1739531932473,1.113,2702.2,2701.7,4.8168]
[1739531932675,41.54013,2701.8,2701.7,4.8168]
[1739531933674,40.8,2701.8,2701.7,4.8168]
[1739531933984,41.54013,2701.8,2701.7,4.8168]
[1739531934373,41.54013,2701.8,2701.7,3.2078]
[1739531934577,0.74026,2701.4,2701.1,5.44842774]
[1739531934876,1.6505,2701.7,2701.2,2.17494862]
[1739531935079,1.6505,2701.7,2701.2,1.609]
[1739531935281,0.74023,2701.5,2701.3,0.56598233]
[1739531935477,1.6505,2701.7,2701.2,1.609]
[1739531935673,1.6505,2701.7,2701.3,0.5659814]
[1739531935979,1.6505,2701.7,2701.2,1.609]
[1739531936187,1.6505,2701.7,2701.3,0.56597152]
[1739531936380,1.6505,2701.7,2701.2,1.609]
[1739531936587,0.74023,2701.5,2701.2,1.609]
[1739531936784,0.74025,2701.4,2701.2,1.609]
[1739531937085,1.6505,2701.7,2701.2,1.609]
[1739531937485,0.74023,2701.5,2701.2,1.609]
[1739531937988,0.74025,2701.4,2701.2,1.609]
[1739531938188,40.8,2701.3,2701.2,1.609]
[1739531938382,41.54027,2701.3,2701.2,2.17494346]
[1739531938578,41.54027,2701.3,2701.2,1.609]
[1739531938877,41.54027,2701.3,2700.9,1.88747]
[1739531938878,0.74035,2701.0,2700.9,2.7551]
[1739531939184,3.2078,2701.5,2700.9,3.32107748]
[1739531939185,0.74034,2701.1,2700.9,3.32107748]
[1739531939382,0.74034,2701.1,2700.9,2.7551]
[1739531939576,40.8,2701.0,2700.9,2.7551]
[1739531939777,40.8,2701.0,2700.9,1.7129785]
[1739531939977,41.54035,2701.0,2700.9,1.7129785]
[1739531940177,40.8,2701.0,2700.9,1.7129785]
[1739531940787,41.54035,2701.0,2700.9,1.1471]
[1739531941181,40.8,2701.0,2700.8,3.21335741]
[1739531941386,0.74038,2700.9,2700.8,0.00555741]
[1739531941588,40.8,2701.0,2700.8,5.45398515]
[1739531942093,40.8,2701.0,2700.9,3.02756859]
[1739531945290,40.8,2701.0,2700.9,2.28718859]
[1739531945686,41.54035,2701.0,2700.9,1.1271]
[1739531945991,40.8,2701.0,2700.9,1.1271]
[1739531946400,41.54035,2701.0,2700.9,1.1271]
[1739531948086,41.54035,2701.0,2700.9,0.5485]
[1739531948285,0.74038,2700.9,2700.8,3.21335741]
[1739531948595,0.74038,2700.9,2700.8,0.00555741]
[1739531948893,41.54038,2700.9,2700.8,0.00555741]
[1739531950392,45.85878,2700.9,2700.2,2.2074]
[1739531950599,0.74053,2700.4,2700.2,0.5944]
[1739531950793,0.74052,2700.4,2700.2,0.5944]
[1739531951290,0.7405,2700.5,2700.2,0.5944]
[1739531951493,1.1175,2700.8,2700.2,0.5944]
[1739531951692,0.74057,2700.2,2700.1,0.572]